Cogmind - Beta 13 @@@ ROGUE MODE // 2024.04.09 @ 19:44:10 Player: TheSecutor Result: Destroyed by S-10 Pest with Light Assault Rifle Performance ------------- Evolutions (0) 0 Regions Visited (2) 400 Robots Destroyed (8) 40 Value Destroyed (202) 202 Prototype IDs (0) 0 Alien Tech Used (0) 0 Bonus (0) 0 TOTAL SCORE: 642 Bonus ------- None Cogmind --------- Core Integrity 0/250 Matter 283/300 Energy 95/100 System Corruption 0% Temperature Cool (0) Movement Walking (120) Location -10/Mines Parts ------- > --- POWER (1) -------- (None) > --- PROPULSION (2) --- Aluminum Leg Aluminum Leg > --- UTILITY (2) ------ Small Storage Unit Improved Terrain Scanner > --- WEAPON (2) ------- Light Assault Rifle > --- INVENTORY (8) ---- Light Ion Engine Heat Sink Heat Sink Improved Heat Sink Peak State ------------ > --- POWER ------------ Light Ion Engine > --- PROPULSION ------- Flight Unit Flight Unit > --- UTILITY ---------- Small Storage Unit Improved Terrain Scanner > --- WEAPON ----------- Light Assault Rifle Enhanced Flamer > --- INVENTORY -------- Light Ion Engine Heat Sink Improved Heat Sink [Rating: 11] Favorites ----------- Power Light Ion Engine Engine Light Ion Engine Propulsion Flight Unit Leg Aluminum Leg Wheel Wheel Flight Unit Flight Unit Utility Small Storage Unit Device Improved Terrain Scanner Storage Small Storage Unit Weapon Light Assault Rifle Ballistic Gun Light Assault Rifle Launcher Grenade Launcher Special Weapon Enhanced Flamer Build | -11 -10 -10 ------- Run | Yrd Mat Min Slots Evolved . | . . . Power . | . . . Propulsion . | . . . Utility . | . . . Weapon . | . . . Parts Attached 17 | 6 5 6 Power 1 | 1 . . Engine 1 | 1 . . Core . | . . . Reactor . | . . . Propulsion 6 | 2 2 2 Treads . | . . . Leg 2 | . . 2 Wheel 2 | 2 . . Hover . | . . . Flight 2 | . 2 . Utility 4 | 1 . 3 Device 3 | . . 3 Storage 1 | 1 . . Processor . | . . . Hackware . | . . . Protection . | . . . Artifact . | . . . Weapon 6 | 2 3 1 Energy Gun . | . . . Energy Cannon . | . . . Ballistic Gun 4 | 2 2 . Ballistic Cannon . | . . . Launcher 1 | . 1 . Special Weapon 1 | . . 1 Impact Weapon . | . . . Slashing Weapon . | . . . Piercing Weapon . | . . . Special Melee Weapon . | . . . Unidentified Prototypes . | . . . Parts Lost 6 | . 2 4 Power 1 | . . 1 Propulsion 3 | . 2 1 Utility . | . . . Weapon 2 | . . 2 Highest Loss Streak 3 | . 2 3 To Critical Strikes . | . . . Average Slot Usage (%) 82 | . 79 84 Engine 11 | . 14 9 Leg 2 | . . 4 Wheel 7 | . 16 . Flight 14 | . 5 22 Device 7 | . . 14 Storage 14 | . 14 14 Ballistic Gun 19 | . 25 15 Launcher 1 | . 2 . Special Weapon 2 | . . 3 Naked Turns . | . . . Heaviest Build 13 | 11 13 12 Greatest Support 26 | 26 26 20 Greatest Overweight (x) 4 | . 4 1 Average Overweight (x) . | . . . Largest Inventory Capacity 8 | 8 8 8 Average Capacity 7 | 6 8 8 Most Carried 6 | 5 6 5 Average Carried 3 | 4 4 3 Final Capacity 8 | 8 8 8 Final Carried 5 | 4 5 4 Class Distribution -------------------- 58% | Mutant 41% | Scavenger-Mutant Dominant Class ---------------- Mutant | -10/Materials Scavenger-Mutant | -10/Mines Resources | -11 -10 -10 ----------- Run | Yrd Mat Min Matter Collected 416 | 260 105 51 Remotely . | . . . Salvage Created 197 | . 105 92 Parts 19 | . 12 7 Haulers Intercepted . | . . . Recyclers Shooed . | . . . Parts Field Recycled . | . . . Retrieved Matter . | . . . Parts Self-Destructed . | . . . Prevented . | . . . Kills | -11 -10 -10 ------- Run | Yrd Mat Min Combat Hostiles Destroyed 8 | . 5 3 Guns 7 | . 4 3 AOE 1 | . 1 . Classes Destroyed 2 | . 2 . Swarmer 4 | . 3 1 Grunt 4 | . 2 2 Best Kill Streak 3 | . 3 2 Combat Bots Only 3 | . 3 2 Max Kills in Single Turn 1 | . 1 1 Gunslinging . | . . . Exploded 1 | . 1 . Melee . | . . . Uniques/NPCs Destroyed . | . . . Combat | -11 -10 -10 -------- Run | Yrd Mat Min Hostile Shots Fired 86 | . 44 42 Missed 19 | . 11 8 Damage Taken 766 | . 357 409 Core 257 | . 123 134 Absorbed by Shields . | . . . Core Remaining (%) 100 | 100 . . Volleys Fired 36 | . 17 19 Largest 2 | . 2 2 Hottest 100 | . 40 100 Shots Fired 49 | . 26 23 Gun 43 | . 24 19 Cannon . | . . . Launcher 2 | . 2 . Special 4 | . . 4 Kinetic 43 | . 24 19 Thermal 4 | . . 4 Explosive 2 | . 2 . Electromagnetic . | . . . Robot Hit Streak 6 | . 5 6 Robot Miss Streak 2 | . 1 2 Penetration Max . | . . . Secondary Targets 1 | . 1 . Max Gunslinging Chain 1 | . 1 . Shots Hit Robots 34 | . 18 16 Core Hits 16 | . 9 7 Critical Kills . | . . . Critical Parts Destroyed . | . . . Critical Strikes . | . . . Melee Attacks . | . . . Impact . | . . . Slashing . | . . . Piercing . | . . . Sneak Attacks . | . . . Combat Hostiles . | . . . Follow-up Attacks . | . . . Damage Inflicted 508 | . 348 160 Guns 315 | . 189 126 Cannons . | . . . Explosions 159 | . 159 . Melee . | . . . Ramming . | . . . Kinetic 315 | . 189 126 Thermal 34 | . . 34 Explosive 159 | . 159 . Electromagnetic . | . . . Impact . | . . . Slashing . | . . . Piercing . | . . . Highest Corruption . | . . . Average Corruption . | . . . Corruption Purged . | . . . Corruption Blocked . | . . . Overload Shots . | . . . Overflow Damage . | . . . Projectiles . | . . . Explosions . | . . . Melee . | . . . Knockbacks . | . . . Impact . | . . . Kinetic . | . . . Secondary . | . . . Self-Inflicted Damage 26 | . 26 . Shots 2 | . 2 . Rammed . | . . . Targets Rammed . | . . . Kicked . | . . . Crushed . | . . . Highest Temperature 127 | . 28 127 Average Temperature 44 | . 11 59 Received Heat Transfer 283 | . 108 175 Siege Activations . | . . . Robots Corrupted . | . . . Combat Hostiles . | . . . Parts Fried . | . . . Impact Corruptions . | . . . Robots Melted . | . . . Combat Hostiles . | . . . Parts Melted . | . . . Heat Transferred 240 | . . 240 Parts Sabotaged . | . . . Parts Stolen . | . . . Parts Stripped . | . . . Power Chain Reactions . | . . . Alert | -11 -10 -10 ------- Run | Yrd Mat Min Peak Influence 115 | . 115 70 Initial 44 | . . 44 Average 28 | . 46 24 Maximum Alert Level . | . . . Low Security (%) 100 | 100 100 100 Level 1 . | . . . Level 2 . | . . . Level 3 . | . . . Level 4 . | . . . Level 5 . | . . . High Security . | . . . Max Security . | . . . Squads Dispatched . | . . . Investigation . | . . . Extermination . | . . . Reinforcement . | . . . Assault . | . . . Garrison . | . . . Intercept . | . . . Searches Triggered . | . . . Construction Impeded . | . . . Haulers Reinforced . | . . . Active Scanning Responses . | . . . Cargo Convoy Interrupts . | . . . Stealth | -11 -10 -10 --------- Run | Yrd Mat Min Distress Signals 1 | . 1 . Communications Jammed . | . . . Distress Signals . | . . . Times Spotted 31 | . 6 25 Peak Tracking Total 19 | . 6 19 Tactical Retreats 1 | . . 1 Traps | -11 -10 -10 ------- Run | Yrd Mat Min Traps Triggered . | . . . Indirectly . | . . . Trap Hack Attempts . | . . . Triggered . | . . . Disarmed . | . . . Reprogrammed . | . . . Reused . | . . . Traps Extracted . | . . . Installed . | . . . Triggered . | . . . Machines | -11 -10 -10 ---------- Run | Yrd Mat Min Machines Disabled . | . . . Max in Single Turn . | . . . Machines Repaired . | . . . Machines Dismantled . | . . . Machines Sabotaged . | . . . Overloaded Fab Kills . | . . . Hacking | -11 -10 -10 --------- Run | Yrd Mat Min Machines Accessed 2 | . 2 . Terminals 2 | . 2 . Fabricators . | . . . Repair Stations . | . . . Recycling Units . | . . . Scanalyzers . | . . . Garrison Access . | . . . Total Hacks 4 | . 4 . Successful 3 | . 3 . Failed 1 | . 1 . Catastrophic . | . . . Database Lockouts . | . . . Manual . | . . . Terminals 4 | . 4 . Fabricators . | . . . Repair Stations . | . . . Recycling Units . | . . . Scanalyzers . | . . . Garrison Access . | . . . Terminal Hacks 3 | . 3 . Record 2 | . 2 . Terminal Index 1 | . 1 . Fabricator Hacks . | . . . Repair Station Hacks . | . . . Recycling Unit Hacks . | . . . Scanalyzer . | . . . Garrison Access Hacks . | . . . Unauthorized Hacks . | . . . Terminals . | . . . Fabricators . | . . . Repair Stations . | . . . Recycling Units . | . . . Scanalyzers . | . . . Garrison Access . | . . . Data Cores Recovered . | . . . Used . | . . . Hacking Detections 1 | . 1 . Full Trace Events . | . . . Feedback Events . | . . . Feedback Blocked . | . . . Robot Schematics Acquired . | . . . Robots Built . | . . . Authchips . | . . . Time . | . . . Total Robot Build Rating . | . . . Part Schematics Acquired . | . . . Parts Built . | . . . Authchips . | . . . Time . | . . . Total Part Build Rating . | . . . Parts Repaired . | . . . Time . | . . . Parts Recycled . | . . . Recycled Matter . | . . . Retrieved Matter . | . . . Retrieved Components . | . . . Parts Scanalyzed . | . . . Part Schematics Acquired . | . . . Parts Damaged . | . . . Bothacking | -11 -10 -10 ------------ Run | Yrd Mat Min Used RIF Installer . | . . . Robots Hacked . | . . . Non-combat . | . . . Combat . | . . . Robot Hacks Applied . | . . . Relay Couplers Released . | . . . Fabnet Peak Effective % . | . . . Robots Rewired . | . . . Allies Hacked . | . . . Hacks Repelled . | . . . Allies | -11 -10 -10 -------- Run | Yrd Mat Min Total Allies 1 | . . 1 Largest Group 1 | . . 1 Highest-Rated Group 31 | . . 31 Highest-Rated Ally 31 | . . 31 Total Orders . | . . . Ally Attacks 6 | . . 6 Total Damage 64 | . . 64 Kills 3 | . . 3 Allies Corrupted . | . . . Allies Melted . | . . . Intel | -11 -10 -10 ------- Run | Yrd Mat Min Robot Analysis Total . | . . . Derelict Logs Recovered 2 | . . 2 Drone Launches . | . . . Drone Recoveries . | . . . Exploration | -11 -10 -10 ------------- Run | Yrd Mat Min Turns Passed 498 | 82 192 224 Spaces Moved 360 | 81 135 144 Core 18 | 14 4 . Treads . | . . . Legs 19 | . . 19 Wheels 170 | 67 103 . Hover . | . . . Flight 153 | . 28 125 Fastest Speed 50 | 50 90 117 Average Speed 103 | 82 101 117 Slowest Speed 280 | 90 280 120 Overloaded Moves . | . . . Propulsion Burnouts . | . . . Robots Hopped . | . . . Cave-ins Triggered . | . . . Exploration Rate (%) 26 | 5 27 48 Regions Visited 2 Branch Regions 1 Pre-discovered Areas 1 | . . 1 Known Exits Taken . | . . . Unknown Exits Taken 2 | 1 1 . Scrap Searched . | . . . Spaces Dug . | . . . Terrain Destroyed 11 | . 11 . Melee . | . . . Projectile . | . . . AOE 11 | . 11 . Terrain Rammed . | . . . Walls Destroyed . | . . . Machines Disabled . | . . . Actions | -11 -10 -10 --------- Run | Yrd Mat Min Total 436 | 94 165 177 Wait . | . . . Move 358 | 80 134 144 Hop . | . . . Pick Up 18 | 8 6 4 Fast Attach 3 | 2 . 1 Attach 9 | 4 2 3 Detach 1 | . . 1 Swap 5 | . 3 2 Drop 6 | . 3 3 Fire 36 | . 17 19 Melee . | . . . Ram . | . . . Kick . | . . . Crush . | . . . Escape Stasis . | . . . Rewire . | . . . Trap . | . . . Miscellaneous . | . . . Route ------- -11/Scrapyard -10/Materials -10/Mines History --------- Turn | Location | Event 7 | -11/Scrapyard | Discovered new exit (range 15) 83 | -11/Scrapyard | Entered Materials 167 | -10/Materials | Discovered new exit (range 16) 275 | -10/Materials | Entered Mines 276 | -10/Mines | Assembled infested the area 278 | -10/Mines | Received a Mining Laser from a helpful Derelict 299 | -10/Mines | Learned location of Zion (-7) 324 | -10/Mines | Found a hidden stash of uninstalled traps 385 | -10/Mines | A weapon hastily lodged in a ceiling crevice suddenly fell to the ground 410 | -10/Mines | Core integrity fell below 50% 450 | -10/Mines | Core integrity fell below 20% 472 | -10/Mines | Lost 3 parts (1p1n1w) 499 | -10/Mines | Destroyed by S-10 Pest with Light Assault Rifle Last Messages --------------- 00443_ G-47 Trooper heat spikes uncontrollably. 00443_ G-47 Trooper overheating. 00444_ K-01 Serf collects debris. 00449_ G-47 Trooper destroyed. 00454_ K-01 Serf collects debris. 00454_ G-34 Mercenary destroyed. 00456_ Acquired 29 matter. 00457_ K-01 Serf collects debris. 00459_ Acquired Aluminum Leg. 00461_ K-01 Serf collects debris. 00461_ Acquired Heat Sink. 00464_ Acquired 22 matter. 00464_ K-01 Serf collects debris. 00465_ R-06 Scavenger collects Aluminum Leg. 00466_ Acquired Aluminum Leg. 00468_ K-01 Serf collects debris. 00468_ Dropped Flight Unit. 00471_ R-06 Scavenger collects Flight Unit. 00472_ K-01 Serf collects debris. 00488_ S-10 Pest destroyed. Map ----- +----------------------------------------------------+ | | | | | | | | | | | | | | | | | | | | | | | | | | | | | | | | | | | | | ?????????????????????????????????????? | | ?????????????????????????#???????????? | | ??#?####?????????#???????????????????? | | ????# ?????????#?????????????????## | | ????# ?##?????????????????????? ? | | ????? """ ######????????????#????? ? | | ????# """ ss #?????????????????? ## | | ????# """ =%@ #?#???#?##??#?#??? ## | | ????# ### #???###T#????????? #? | | ???####?????## #???# ####### #? | | #?## #??????# #????? """ #? | | ??# #????## #??## """ #? | | ??# ##### #???? """ ##### ####? | | ?## ##????????????## ##??? | | ?# ###########?## #??? | | ?# ### ##??? | | ?## #### ##???? | | ?????###### ### #### #????? | | ????# # ### ##?# ## #???#? | | ????#^ ## # #??# ##### #####? | | ????#?# ^^ #### #??###???# #? | | ????# ^ # ##??# #?????#??##### #? | | ????# ^ # % ###?# #????#???????# #? | | ????# #### #????????#???# ## | | #??###### ### ????????????# | | ??#?????# ## #####???????????## # | | ????????# ?## #??#?????????????# # | | ??????? ??# #????#???????#???# # | | ?????? ####??## ##????????????????# # | | ?????#????????# ##?????????????#???# # | | ???????#??????# #??????????????????# # | | ??????????????# #?????????? ???????# # | +----------------------------------------------------+ Best States ------------- Heat Dissipation 35 Energy Generation 10 Energy Capacity 125 Matter Stores 300 Matter Capacity 300 Sight Range 16 Terrain Scan Range 16 Terrain Scan Density 10 Evasion (%) 50 Item Schematics ----------------- None Robot Schematics ------------------ None Fabricated ------------ Nothing Alien Tech Used ----------------- None Achievements -------------- Slippery One Challenges ------------ None Game ------ Seed PulseAuthchipJammer Manual? 0 Play Time 00:08:52 Cumulative 4.9 hours Start 2024.04.09 @ 19:36:23 End 2024.04.09 @ 19:44:10 Sessions 1 Manual Loads 0 Difficulty Rogue Special Mode None Game No. 15 Rogue 15 Adventurer 0 Explorer 0 Win Type - Total 0 Types 0/0/0/0/0/0/0/0/0 Lore% 1 Gallery% 14 Achievement% 12 Wizard Run 0 Options --------- Layout 1 ASCII 0 Keyboard 0 Movement Mouse Keybinds 0 Fullscreen 1 Font 24/Smallcaps Map View 50x35 Zoom Use 0% Tactical HUD 1 Map Filters NONE Filters NONE Steam 1 RUN: e577f2d1-0b26-4847-bf8c-597d90dbf122